[Event "December 19 Late 2023"]
[Site "https://www.chess.com"]
[Date "2023.12.19"]
[Round "10"]
[White "Romanchuk, Viktor"]
[Black "Desideri, Ricardo Maruchi"]
[Result "0-1"]
[Board "113"]
[TimeControl "180+1"]
[WhiteFideId "14109271"]
[BlackFideId "2110440"]
[WhiteElo "2242"]
[BlackElo "1945"]
[WhiteTeam "UKR"]
[BlackTeam "BRA"]
[WhiteClock "0:00:00"]
[BlackClock "0:00:02"]

1. d4 {[%clk 0:03:00]}  Nf6 {[%clk 0:02:45]} 2. c4 {[%clk 0:02:58]}  c5 {[%clk 0:02:45]} 3. Nf3 {[%clk 0:02:58]}  cxd4 {[%clk 0:02:44]} 4. Nxd4 {[%clk 0:02:59]}  b6 {[%clk 0:02:44]} 5. Nc3 {[%clk 0:02:47]}  Bb7 {[%clk 0:02:44]} 6. Bg5 {[%clk 0:02:47]}  e6 {[%clk 0:02:41]} 7. Ndb5 {[%clk 0:02:36]}  d6 {[%clk 0:02:35]} 8. Bf4 {[%clk 0:02:35]}  e5 {[%clk 0:02:34]} 9. Bg5 {[%clk 0:02:34]}  a6 {[%clk 0:02:33]} 10. Na3 {[%clk 0:02:32]}  Be7 {[%clk 0:02:28]} 11. Bxf6 {[%clk 0:02:28]}  Bxf6 {[%clk 0:02:27]} 12. Nd5 {[%clk 0:02:29]}  Nd7 {[%clk 0:02:24]} 13. g3 {[%clk 0:02:28]}  O-O {[%clk 0:02:20]} 14. Bg2 {[%clk 0:02:28]}  Bxd5 {[%clk 0:02:18]} 15. Bxd5 {[%clk 0:02:27]}  Rc8 {[%clk 0:02:15]} 16. O-O {[%clk 0:02:25]}  Be7 {[%clk 0:02:13]} 17. Bb7 {[%clk 0:02:19]}  Rc7 {[%clk 0:02:03]} 18. Bxa6 {[%clk 0:02:19]}  Nf6 {[%clk 0:01:54]} 19. Nb5 {[%clk 0:02:14]}  Rxc4 {[%clk 0:01:49]} 20. Nxd6 {[%clk 0:02:02]}  Rd4 {[%clk 0:01:46]} 21. Nxf7 {[%clk 0:01:52]}  Rxf7 {[%clk 0:01:36]} 22. Qb3 {[%clk 0:01:50]}  Qd5 {[%clk 0:01:34]} 23. Qxb6 {[%clk 0:01:35]}  Bc5 {[%clk 0:01:26]} 24. Qb3 {[%clk 0:01:17]}  Qxb3 {[%clk 0:01:06]} 25. axb3 {[%clk 0:01:18]}  Rf8 {[%clk 0:00:52]} 26. Ra5 {[%clk 0:01:12]}  Bd6 {[%clk 0:00:50]} 27. Kg2 {[%clk 0:00:51]}  Ne4 {[%clk 0:00:48]} 28. Bd3 {[%clk 0:00:45]}  Nd2 {[%clk 0:00:43]} 29. Rd1 {[%clk 0:00:28]}  Nxb3 {[%clk 0:00:37]} 30. Rb5 {[%clk 0:00:27]}  Nc5 {[%clk 0:00:34]} 31. Bc2 {[%clk 0:00:16]}  Rxd1 {[%clk 0:00:27]} 32. Bxd1 {[%clk 0:00:17]}  Rb8 {[%clk 0:00:26]} 33. Rxb8+ {[%clk 0:00:13]}  Bxb8 {[%clk 0:00:26]} 34. b4 {[%clk 0:00:13]}  Ne4 {[%clk 0:00:22]} 35. Kf3 {[%clk 0:00:08]}  Nc3 {[%clk 0:00:22]} 36. Bb3+ {[%clk 0:00:07]}  Kf8 {[%clk 0:00:21]} 37. Ke3 {[%clk 0:00:08]}  Ke7 {[%clk 0:00:19]} 38. Kd3 {[%clk 0:00:08]}  Nb5 {[%clk 0:00:19]} 39. e3 {[%clk 0:00:07]}  Nd6 {[%clk 0:00:19]} 40. Bd5 {[%clk 0:00:06]}  Kd8 {[%clk 0:00:18]} 41. f4 {[%clk 0:00:06]}  exf4 {[%clk 0:00:15]} 42. gxf4 {[%clk 0:00:06]}  Ke7 {[%clk 0:00:14]} 43. e4 {[%clk 0:00:07]}  g6 {[%clk 0:00:13]} 44. e5 {[%clk 0:00:07]}  Nf5 {[%clk 0:00:12]} 45. Bg8 {[%clk 0:00:07]}  h6 {[%clk 0:00:11]} 46. Ke4 {[%clk 0:00:06]}  Kf8 {[%clk 0:00:08]} 47. Be6 {[%clk 0:00:05]}  Ng7 {[%clk 0:00:06]} 48. Bc8 {[%clk 0:00:03]}  Ke7 {[%clk 0:00:06]} 49. Kd5 {[%clk 0:00:03]}  Nf5 {[%clk 0:00:05]} 50. Ke4 {[%clk 0:00:03]}  Ng7 {[%clk 0:00:04]} 51. Kd5 {[%clk 0:00:03]}  Nf5 {[%clk 0:00:05]} 52. Ke4 {[%clk 0:00:03]}  Nh4 {[%clk 0:00:05]} 53. b5 {[%clk 0:00:03]}  Nf5 {[%clk 0:00:04]} 54. Bxf5 {[%clk 0:00:02]}  gxf5+ {[%clk 0:00:04]} 55. Kxf5 {[%clk 0:00:03]}  Kf7 {[%clk 0:00:04]} 56. h4 {[%clk 0:00:03]}  Ke7 {[%clk 0:00:04]} 57. h5 {[%clk 0:00:03]}  Kf7 {[%clk 0:00:04]} 58. b6 {[%clk 0:00:03]}  Ke7 {[%clk 0:00:02]} 59. Kg6 {[%clk 0:00:00]}  Ke6 {[%clk 0:00:02]} 0-1

[Event "December 19 Late 2023"]
[Site "https://www.chess.com"]
[Date "2023.12.19"]
[Round "11"]
[White "Nakamura, Hikaru"]
[Black "Maksimovic, Bojan"]
[Result "1-0"]
[Board "1"]
[TimeControl "180+1"]
[WhiteFideId "2016192"]
[BlackFideId "14408120"]
[WhiteElo "2874"]
[BlackElo "2527"]
[WhiteTeam "USA"]
[BlackTeam "BIH"]
[WhiteClock "0:00:07"]
[BlackClock "0:00:01"]

1. e4 {[%clk 0:03:00]}  a6 {[%clk 0:03:00]} 2. d4 {[%clk 0:03:00]}  e6 {[%clk 0:03:01]} 3. Nf3 {[%clk 0:02:57]}  d5 {[%clk 0:03:01]} 4. Nc3 {[%clk 0:02:57]}  Nf6 {[%clk 0:03:01]} 5. Bd3 {[%clk 0:02:57]}  c5 {[%clk 0:03:00]} 6. e5 {[%clk 0:02:53]}  Nfd7 {[%clk 0:02:58]} 7. dxc5 {[%clk 0:02:48]}  Nc6 {[%clk 0:02:57]} 8. Bf4 {[%clk 0:02:48]}  Qc7 {[%clk 0:02:36]} 9. O-O {[%clk 0:02:42]}  Bxc5 {[%clk 0:02:36]} 10. Re1 {[%clk 0:02:33]}  Bb4 {[%clk 0:02:25]} 11. Bg3 {[%clk 0:02:21]}  Bxc3 {[%clk 0:02:21]} 12. bxc3 {[%clk 0:02:21]}  Na5 {[%clk 0:02:22]} 13. Qd2 {[%clk 0:02:17]}  h6 {[%clk 0:02:17]} 14. h4 {[%clk 0:02:16]}  Nc5 {[%clk 0:02:16]} 15. Bf4 {[%clk 0:02:10]}  Bd7 {[%clk 0:02:12]} 16. Be3 {[%clk 0:02:10]}  Na4 {[%clk 0:02:09]} 17. Bd4 {[%clk 0:02:09]}  Rc8 {[%clk 0:02:08]} 18. Qf4 {[%clk 0:02:00]}  Nxc3 {[%clk 0:01:58]} 19. Qg4 {[%clk 0:02:00]}  Kf8 {[%clk 0:01:58]} 20. Re3 {[%clk 0:01:53]}  Nb5 {[%clk 0:01:53]} 21. Rae1 {[%clk 0:01:33]}  Nxd4 {[%clk 0:01:47]} 22. Nxd4 {[%clk 0:01:33]}  Nc6 {[%clk 0:01:43]} 23. Rg3 {[%clk 0:01:26]}  g6 {[%clk 0:01:27]} 24. Nxc6 {[%clk 0:01:18]}  Bxc6 {[%clk 0:01:22]} 25. Ree3 {[%clk 0:00:51]}  Re8 {[%clk 0:00:52]} 26. Qd4 {[%clk 0:00:31]}  Ke7 {[%clk 0:00:48]} 27. h5 {[%clk 0:00:32]}  g5 {[%clk 0:00:48]} 28. Ref3 {[%clk 0:00:32]}  Kd8 {[%clk 0:00:45]} 29. Rf6 {[%clk 0:00:32]}  Re7 {[%clk 0:00:44]} 30. f4 {[%clk 0:00:27]}  gxf4 {[%clk 0:00:41]} 31. Qxf4 {[%clk 0:00:28]}  Kc8 {[%clk 0:00:42]} 32. Kh2 {[%clk 0:00:28]}  Kb8 {[%clk 0:00:42]} 33. Re3 {[%clk 0:00:27]}  Rg8 {[%clk 0:00:29]} 34. Rxh6 {[%clk 0:00:22]}  f5 {[%clk 0:00:30]} 35. Rg3 {[%clk 0:00:21]}  Rxg3 {[%clk 0:00:16]} 36. Qxg3 {[%clk 0:00:22]}  Ka7 {[%clk 0:00:16]} 37. Rg6 {[%clk 0:00:15]}  Rh7 {[%clk 0:00:16]} 38. Be2 {[%clk 0:00:16]}  Be8 {[%clk 0:00:13]} 39. Rg5 {[%clk 0:00:14]}  Qe7 {[%clk 0:00:09]} 40. Bf3 {[%clk 0:00:11]}  b6 {[%clk 0:00:07]} 41. Qf4 {[%clk 0:00:11]}  Bf7 {[%clk 0:00:07]} 42. Kg3 {[%clk 0:00:11]}  Be8 {[%clk 0:00:06]} 43. Kh2 {[%clk 0:00:11]}  a5 {[%clk 0:00:07]} 44. Qh4 {[%clk 0:00:09]}  Rh6 {[%clk 0:00:02]} 45. Kh3 {[%clk 0:00:08]}  Bf7 {[%clk 0:00:02]} 46. Rg7 {[%clk 0:00:07]}  Qf8 {[%clk 0:00:01]} 47. Qg5 {[%clk 0:00:07]}  Ka6 {[%clk 0:00:01]} 48. Qxh6 {[%clk 0:00:07]} 1-0

[Event "December 19 Late 2023"]
[Site "https://www.chess.com"]
[Date "2023.12.19"]
[Round "11"]
[White "Niemann, Hans Moke"]
[Black "Ivic, Velimir"]
[Result "1-0"]
[Board "2"]
[TimeControl "180+1"]
[WhiteFideId "2093596"]
[BlackFideId "950122"]
[WhiteElo "2614"]
[BlackElo "2542"]
[WhiteTeam "USA"]
[BlackTeam "SRB"]
[WhiteClock "0:00:12"]
[BlackClock "0:00:01"]

1. e4 {[%clk 0:02:58]}  c5 {[%clk 0:03:00]} 2. Nf3 {[%clk 0:02:57]}  Nc6 {[%clk 0:03:00]} 3. Bb5 {[%clk 0:02:57]}  e6 {[%clk 0:03:00]} 4. Bxc6 {[%clk 0:02:55]}  bxc6 {[%clk 0:03:01]} 5. d3 {[%clk 0:02:55]}  Qc7 {[%clk 0:02:59]} 6. e5 {[%clk 0:02:30]}  f6 {[%clk 0:02:56]} 7. Qe2 {[%clk 0:02:24]}  fxe5 {[%clk 0:02:48]} 8. Nxe5 {[%clk 0:02:25]}  Nf6 {[%clk 0:02:46]} 9. Bg5 {[%clk 0:02:21]}  Be7 {[%clk 0:02:43]} 10. Nd2 {[%clk 0:02:22]}  d6 {[%clk 0:02:36]} 11. Nec4 {[%clk 0:02:19]}  O-O {[%clk 0:02:34]} 12. O-O {[%clk 0:02:20]}  Nd5 {[%clk 0:02:12]} 13. Bxe7 {[%clk 0:02:14]}  Qxe7 {[%clk 0:02:13]} 14. g3 {[%clk 0:02:13]}  e5 {[%clk 0:02:02]} 15. f4 {[%clk 0:02:01]}  Bh3 {[%clk 0:01:55]} 16. Rf2 {[%clk 0:02:00]}  Nc7 {[%clk 0:01:16]} 17. fxe5 {[%clk 0:00:57]}  d5 {[%clk 0:01:13]} 18. Rxf8+ {[%clk 0:00:51]}  Rxf8 {[%clk 0:01:14]} 19. Nd6 {[%clk 0:00:50]}  Ne6 {[%clk 0:01:13]} 20. c3 {[%clk 0:00:49]}  Qg5 {[%clk 0:01:08]} 21. Kh1 {[%clk 0:00:45]}  Bg4 {[%clk 0:01:06]} 22. Qe1 {[%clk 0:00:42]}  Qh6 {[%clk 0:00:55]} 23. h4 {[%clk 0:00:29]}  g5 {[%clk 0:00:28]} 24. Qe3 {[%clk 0:00:29]}  Qh5 {[%clk 0:00:29]} 25. Rf1 {[%clk 0:00:24]}  Rxf1+ {[%clk 0:00:24]} 26. Nxf1 {[%clk 0:00:24]}  gxh4 {[%clk 0:00:25]} 27. Kg1 {[%clk 0:00:25]}  h3 {[%clk 0:00:16]} 28. Nh2 {[%clk 0:00:25]}  Qg6 {[%clk 0:00:14]} 29. Qf2 {[%clk 0:00:22]}  h5 {[%clk 0:00:14]} 30. Nxg4 {[%clk 0:00:18]}  hxg4 {[%clk 0:00:14]} 31. Nf5 {[%clk 0:00:19]}  Kh7 {[%clk 0:00:11]} 32. Ne3 {[%clk 0:00:19]}  d4 {[%clk 0:00:08]} 33. cxd4 {[%clk 0:00:16]}  cxd4 {[%clk 0:00:09]} 34. Nf5 {[%clk 0:00:15]}  Ng5 {[%clk 0:00:09]} 35. Qf4 {[%clk 0:00:15]}  Nf3+ {[%clk 0:00:07]} 36. Kh1 {[%clk 0:00:16]}  h2 {[%clk 0:00:06]} 37. Ne7 {[%clk 0:00:16]}  Qe6 {[%clk 0:00:04]} 38. Nf5 {[%clk 0:00:11]}  Nxe5 {[%clk 0:00:05]} 39. Nxd4 {[%clk 0:00:11]}  Qd5+ {[%clk 0:00:04]} 40. Qe4+ {[%clk 0:00:12]}  Qxe4+ {[%clk 0:00:03]} 41. dxe4 {[%clk 0:00:13]}  Nd3 {[%clk 0:00:02]} 42. Nxc6 {[%clk 0:00:11]}  Nf2+ {[%clk 0:00:01]} 43. Kxh2 {[%clk 0:00:12]}  Nxe4 {[%clk 0:00:02]} 44. Nxa7 {[%clk 0:00:12]}  Kg6 {[%clk 0:00:02]} 45. b4 {[%clk 0:00:13]}  Kf5 {[%clk 0:00:03]} 46. a4 {[%clk 0:00:13]}  Ke6 {[%clk 0:00:03]} 47. a5 {[%clk 0:00:14]}  Kd5 {[%clk 0:00:04]} 48. a6 {[%clk 0:00:14]}  Nd6 {[%clk 0:00:03]} 49. Kg2 {[%clk 0:00:13]}  Kc4 {[%clk 0:00:03]} 50. Nc6 {[%clk 0:00:13]}  Nb5 {[%clk 0:00:02]} 51. a7 {[%clk 0:00:13]}  Nc7 {[%clk 0:00:03]} 52. Kf2 {[%clk 0:00:13]}  Kb5 {[%clk 0:00:03]} 53. Ne5 {[%clk 0:00:13]}  Kxb4 {[%clk 0:00:03]} 54. Nxg4 {[%clk 0:00:14]}  Kb5 {[%clk 0:00:03]} 55. Nf6 {[%clk 0:00:12]}  Kb6 {[%clk 0:00:04]} 56. Nd5+ {[%clk 0:00:12]}  Kxa7 {[%clk 0:00:01]} 57. Nxc7 {[%clk 0:00:12]} 1-0

[Event "December 19 Late 2023"]
[Site "https://www.chess.com"]
[Date "2023.12.19"]
[Round "11"]
[White "Bluebaum, Matthias"]
[Black "Makarian, Rudik"]
[Result "1-0"]
[Board "3"]
[TimeControl "180+1"]
[WhiteFideId "24651516"]
[BlackFideId "44105681"]
[WhiteElo "2621"]
[BlackElo "2540"]
[WhiteTeam "GER"]
[BlackTeam "FID"]
[WhiteClock "0:00:29"]
[BlackClock "0:00:00"]

1. d4 {[%clk 0:03:00]}  Nf6 {[%clk 0:03:00]} 2. c4 {[%clk 0:03:01]}  e6 {[%clk 0:03:01]} 3. Nc3 {[%clk 0:03:02]}  d5 {[%clk 0:03:02]} 4. cxd5 {[%clk 0:03:03]}  exd5 {[%clk 0:03:03]} 5. Bg5 {[%clk 0:03:03]}  c6 {[%clk 0:03:03]} 6. e3 {[%clk 0:03:04]}  Bf5 {[%clk 0:03:04]} 7. Nge2 {[%clk 0:03:04]}  h6 {[%clk 0:03:04]} 8. Bf4 {[%clk 0:03:05]}  Nbd7 {[%clk 0:03:04]} 9. Ng3 {[%clk 0:03:06]}  Be6 {[%clk 0:03:05]} 10. h4 {[%clk 0:03:06]}  Nb6 {[%clk 0:03:06]} 11. Bd3 {[%clk 0:03:06]}  Bd6 {[%clk 0:03:07]} 12. Nge2 {[%clk 0:03:07]}  O-O {[%clk 0:03:07]} 13. Qd2 {[%clk 0:03:07]}  Re8 {[%clk 0:03:04]} 14. f3 {[%clk 0:03:07]}  Rc8 {[%clk 0:03:01]} 15. g4 {[%clk 0:03:04]}  Bxf4 {[%clk 0:02:33]} 16. Nxf4 {[%clk 0:03:05]}  Nfd7 {[%clk 0:02:34]} 17. g5 {[%clk 0:03:00]}  hxg5 {[%clk 0:02:35]} 18. hxg5 {[%clk 0:03:01]}  Qxg5 {[%clk 0:02:35]} 19. O-O-O {[%clk 0:02:55]}  Nc4 {[%clk 0:01:42]} 20. Bxc4 {[%clk 0:02:36]}  dxc4 {[%clk 0:01:43]} 21. Rdg1 {[%clk 0:02:37]}  Qa5 {[%clk 0:01:43]} 22. Qg2 {[%clk 0:02:28]}  Kf8 {[%clk 0:01:40]} 23. Nxe6+ {[%clk 0:02:21]}  Rxe6 {[%clk 0:01:37]} 24. Rh8+ {[%clk 0:02:19]}  Ke7 {[%clk 0:01:37]} 25. Rxc8 {[%clk 0:02:19]}  Rxe3 {[%clk 0:01:38]} 26. Qg5+ {[%clk 0:02:10]}  Qxg5 {[%clk 0:01:38]} 27. Rxg5 {[%clk 0:02:11]}  g6 {[%clk 0:01:37]} 28. Rg3 {[%clk 0:02:06]}  Kd6 {[%clk 0:01:28]} 29. f4 {[%clk 0:01:53]}  Re7 {[%clk 0:01:19]} 30. Kd2 {[%clk 0:01:48]}  Nb6 {[%clk 0:01:15]} 31. Rd8+ {[%clk 0:01:46]}  Kc7 {[%clk 0:01:15]} 32. Rf8 {[%clk 0:01:47]}  Rd7 {[%clk 0:01:14]} 33. Kc2 {[%clk 0:01:43]}  Nc8 {[%clk 0:01:13]} 34. Ne4 {[%clk 0:01:42]}  Rxd4 {[%clk 0:01:02]} 35. Rxf7+ {[%clk 0:01:42]}  Kb6 {[%clk 0:01:03]} 36. Nd2 {[%clk 0:01:36]}  Nd6 {[%clk 0:01:01]} 37. Re7 {[%clk 0:01:36]}  Nf5 {[%clk 0:00:59]} 38. Re4 {[%clk 0:01:17]}  Rxd2+ {[%clk 0:00:46]} 39. Kxd2 {[%clk 0:01:18]}  Nxg3 {[%clk 0:00:47]} 40. Re6 {[%clk 0:01:18]}  Kc7 {[%clk 0:00:15]} 41. Rxg6 {[%clk 0:01:18]}  Nf5 {[%clk 0:00:16]} 42. Rg5 {[%clk 0:01:10]}  Nd6 {[%clk 0:00:16]} 43. Ke3 {[%clk 0:01:10]}  b5 {[%clk 0:00:14]} 44. f5 {[%clk 0:01:10]}  c5 {[%clk 0:00:10]} 45. f6 {[%clk 0:00:56]}  Kc6 {[%clk 0:00:09]} 46. Rg7 {[%clk 0:00:50]}  b4 {[%clk 0:00:04]} 47. f7 {[%clk 0:00:50]}  Nf5+ {[%clk 0:00:05]} 48. Kd2 {[%clk 0:00:50]}  Nxg7 {[%clk 0:00:06]} 49. f8=Q {[%clk 0:00:51]}  Ne6 {[%clk 0:00:07]} 50. Qe8+ {[%clk 0:00:50]}  Kd6 {[%clk 0:00:06]} 51. Qb8+ {[%clk 0:00:51]}  Kd5 {[%clk 0:00:07]} 52. Qxa7 {[%clk 0:00:51]}  Nd4 {[%clk 0:00:07]} 53. Qd7+ {[%clk 0:00:51]}  Ke5 {[%clk 0:00:07]} 54. Qf7 {[%clk 0:00:47]}  Ne6 {[%clk 0:00:07]} 55. Ke3 {[%clk 0:00:45]}  Kd5 {[%clk 0:00:07]} 56. Qf5+ {[%clk 0:00:38]}  Kd6 {[%clk 0:00:08]} 57. Ke4 {[%clk 0:00:39]}  Nc7 {[%clk 0:00:08]} 58. Qf6+ {[%clk 0:00:38]}  Kd7 {[%clk 0:00:08]} 59. Qf7+ {[%clk 0:00:38]}  Kc6 {[%clk 0:00:08]} 60. Qxc4 {[%clk 0:00:39]}  Nb5 {[%clk 0:00:09]} 61. Ke5 {[%clk 0:00:37]}  Nc7 {[%clk 0:00:07]} 62. a4 {[%clk 0:00:36]}  Kb6 {[%clk 0:00:06]} 63. Kd6 {[%clk 0:00:32]}  Na6 {[%clk 0:00:06]} 64. Qb5+ {[%clk 0:00:31]}  Ka7 {[%clk 0:00:07]} 65. Kc6 {[%clk 0:00:30]}  c4 {[%clk 0:00:00]} 66. Qb6+ {[%clk 0:00:29]} 1-0

[Event "December 19 Late 2023"]
[Site "https://www.chess.com"]
[Date "2023.12.19"]
[Round "11"]
[White "Sarana, Alexey"]
[Black "Kamsky, Gata"]
[Result "1-0"]
[Board "5"]
[TimeControl "180+1"]
[WhiteFideId "24133795"]
[BlackFideId "2000024"]
[WhiteElo "2707"]
[BlackElo "2660"]
[WhiteTeam "SRB"]
[BlackTeam "USA"]
[WhiteClock "0:01:10"]
[BlackClock "0:00:08"]

1. d4 {[%clk 0:03:00]}  f5 {[%clk 0:02:57]} 2. c4 {[%clk 0:03:00]}  Nf6 {[%clk 0:02:58]} 3. Nc3 {[%clk 0:03:00]}  e6 {[%clk 0:02:58]} 4. g3 {[%clk 0:02:50]}  Bb4 {[%clk 0:02:57]} 5. Bd2 {[%clk 0:02:50]}  a5 {[%clk 0:02:54]} 6. Bg2 {[%clk 0:02:50]}  O-O {[%clk 0:02:54]} 7. e3 {[%clk 0:02:49]}  Nc6 {[%clk 0:02:31]} 8. Nge2 {[%clk 0:02:50]}  Re8 {[%clk 0:02:11]} 9. O-O {[%clk 0:02:49]}  Bf8 {[%clk 0:02:11]} 10. Nf4 {[%clk 0:02:46]}  e5 {[%clk 0:02:07]} 11. dxe5 {[%clk 0:02:46]}  Nxe5 {[%clk 0:02:07]} 12. b3 {[%clk 0:02:41]}  c6 {[%clk 0:02:06]} 13. Qc2 {[%clk 0:02:40]}  d6 {[%clk 0:02:06]} 14. Rad1 {[%clk 0:02:40]}  g6 {[%clk 0:02:02]} 15. Bc1 {[%clk 0:02:39]}  Qc7 {[%clk 0:02:02]} 16. Ba3 {[%clk 0:02:38]}  Ned7 {[%clk 0:01:58]} 17. Rd2 {[%clk 0:02:33]}  Nc5 {[%clk 0:01:58]} 18. Rfd1 {[%clk 0:02:31]}  Bd7 {[%clk 0:01:37]} 19. h3 {[%clk 0:02:31]}  Rad8 {[%clk 0:01:36]} 20. Bb2 {[%clk 0:02:30]}  Nfe4 {[%clk 0:01:33]} 21. Nxe4 {[%clk 0:02:26]}  Nxe4 {[%clk 0:01:30]} 22. Bxe4 {[%clk 0:02:17]}  fxe4 {[%clk 0:01:28]} 23. Qc3 {[%clk 0:02:17]}  Re5 {[%clk 0:00:55]} 24. c5 {[%clk 0:02:17]}  Rde8 {[%clk 0:00:49]} 25. cxd6 {[%clk 0:02:17]}  Qb6 {[%clk 0:00:45]} 26. Qc4+ {[%clk 0:02:14]}  Kg7 {[%clk 0:00:42]} 27. Bxe5+ {[%clk 0:01:58]}  Rxe5 {[%clk 0:00:42]} 28. Qc3 {[%clk 0:01:58]}  Qc5 {[%clk 0:00:36]} 29. Qb2 {[%clk 0:01:57]}  Kf6 {[%clk 0:00:28]} 30. Nd5+ {[%clk 0:01:49]}  Ke6 {[%clk 0:00:23]} 31. Nf4+ {[%clk 0:01:40]}  Kf6 {[%clk 0:00:23]} 32. Rd5 {[%clk 0:01:26]}  cxd5 {[%clk 0:00:22]} 33. Rxd5 {[%clk 0:01:27]}  Qxd6 {[%clk 0:00:19]} 34. Rxd6+ {[%clk 0:01:25]}  Bxd6 {[%clk 0:00:19]} 35. Qd4 {[%clk 0:01:25]}  Ke7 {[%clk 0:00:19]} 36. a4 {[%clk 0:01:19]}  Bc6 {[%clk 0:00:19]} 37. h4 {[%clk 0:01:19]}  Bc7 {[%clk 0:00:16]} 38. Qc4 {[%clk 0:01:17]}  Rf5 {[%clk 0:00:11]} 39. Qg8 {[%clk 0:01:13]}  Rf7 {[%clk 0:00:10]} 40. Qc8 {[%clk 0:01:11]}  Bd6 {[%clk 0:00:08]} 41. Qe6+ {[%clk 0:01:10]} 1-0

[Event "December 19 Late 2023"]
[Site "https://www.chess.com"]
[Date "2023.12.19"]
[Round "11"]
[White "Rasulov, Vugar"]
[Black "Esipenko, Andrey"]
[Result "0-1"]
[Board "6"]
[TimeControl "180+1"]
[WhiteFideId "13402390"]
[BlackFideId "24175439"]
[WhiteElo "2517"]
[BlackElo "2615"]
[WhiteTeam "AZE"]
[BlackTeam "FID"]
[WhiteClock "0:00:01"]
[BlackClock "0:00:10"]

1. d4 {[%clk 0:03:00]}  Nf6 {[%clk 0:02:59]} 2. c4 {[%clk 0:03:01]}  e6 {[%clk 0:02:59]} 3. Nf3 {[%clk 0:03:01]}  b6 {[%clk 0:02:59]} 4. a3 {[%clk 0:03:01]}  Bb7 {[%clk 0:02:59]} 5. Nc3 {[%clk 0:03:01]}  Ne4 {[%clk 0:02:59]} 6. Nxe4 {[%clk 0:02:56]}  Bxe4 {[%clk 0:03:00]} 7. Bg5 {[%clk 0:02:56]}  f6 {[%clk 0:02:56]} 8. Bf4 {[%clk 0:02:52]}  Nc6 {[%clk 0:02:44]} 9. e3 {[%clk 0:02:52]}  g5 {[%clk 0:02:40]} 10. Bg3 {[%clk 0:02:51]}  h5 {[%clk 0:02:40]} 11. h3 {[%clk 0:02:35]}  Qe7 {[%clk 0:02:21]} 12. d5 {[%clk 0:02:23]}  exd5 {[%clk 0:02:14]} 13. cxd5 {[%clk 0:02:24]}  Ne5 {[%clk 0:02:13]} 14. Nxe5 {[%clk 0:02:20]}  fxe5 {[%clk 0:02:14]} 15. Rc1 {[%clk 0:02:21]}  Qd6 {[%clk 0:02:08]} 16. Be2 {[%clk 0:01:56]}  Bxg2 {[%clk 0:02:01]} 17. Rg1 {[%clk 0:01:51]}  Bxd5 {[%clk 0:02:00]} 18. Bxh5+ {[%clk 0:01:44]}  Kd8 {[%clk 0:01:59]} 19. Bf3 {[%clk 0:01:41]}  Bxf3 {[%clk 0:01:38]} 20. Qxf3 {[%clk 0:01:42]}  c6 {[%clk 0:01:34]} 21. Ke2 {[%clk 0:01:32]}  Qe6 {[%clk 0:01:31]} 22. Qe4 {[%clk 0:01:18]}  Bg7 {[%clk 0:01:28]} 23. h4 {[%clk 0:01:14]}  g4 {[%clk 0:01:22]} 24. b4 {[%clk 0:00:46]}  d5 {[%clk 0:01:12]} 25. Qc2 {[%clk 0:00:41]}  Kc7 {[%clk 0:01:12]} 26. Qa4 {[%clk 0:00:37]}  Kb7 {[%clk 0:01:11]} 27. b5 {[%clk 0:00:35]}  cxb5 {[%clk 0:01:02]} 28. Qxb5 {[%clk 0:00:36]}  Rac8 {[%clk 0:01:01]} 29. Rgd1 {[%clk 0:00:34]}  Rxc1 {[%clk 0:00:51]} 30. Rxc1 {[%clk 0:00:35]}  Bf6 {[%clk 0:00:50]} 31. a4 {[%clk 0:00:31]}  Bxh4 {[%clk 0:00:44]} 32. Bxh4 {[%clk 0:00:32]}  Rxh4 {[%clk 0:00:44]} 33. a5 {[%clk 0:00:32]}  a6 {[%clk 0:00:40]} 34. Qb4 {[%clk 0:00:31]}  b5 {[%clk 0:00:36]} 35. Qf8 {[%clk 0:00:20]}  Rh7 {[%clk 0:00:36]} 36. Kd2 {[%clk 0:00:16]}  Rf7 {[%clk 0:00:30]} 37. Qd8 {[%clk 0:00:16]}  Rxf2+ {[%clk 0:00:30]} 38. Ke1 {[%clk 0:00:17]}  Rf7 {[%clk 0:00:29]} 39. Kd2 {[%clk 0:00:16]}  g3 {[%clk 0:00:29]} 40. Qg5 {[%clk 0:00:14]}  d4 {[%clk 0:00:26]} 41. Qxg3 {[%clk 0:00:12]}  Qa2+ {[%clk 0:00:25]} 42. Rc2 {[%clk 0:00:06]}  dxe3+ {[%clk 0:00:25]} 43. Qxe3 {[%clk 0:00:06]}  Rd7+ {[%clk 0:00:25]} 44. Ke1 {[%clk 0:00:03]}  Qxc2 {[%clk 0:00:22]} 45. Qb6+ {[%clk 0:00:04]}  Ka8 {[%clk 0:00:16]} 46. Qxa6+ {[%clk 0:00:04]}  Ra7 {[%clk 0:00:17]} 47. Qxb5 {[%clk 0:00:05]}  Qc3+ {[%clk 0:00:16]} 48. Ke2 {[%clk 0:00:06]}  Rxa5 {[%clk 0:00:15]} 49. Qe8+ {[%clk 0:00:05]}  Kb7 {[%clk 0:00:15]} 50. Qd7+ {[%clk 0:00:05]}  Qc7 {[%clk 0:00:16]} 51. Qd3 {[%clk 0:00:05]}  Ra2+ {[%clk 0:00:13]} 52. Kd1 {[%clk 0:00:05]}  Ra6 {[%clk 0:00:10]} 53. Qd5+ {[%clk 0:00:04]}  Rc6 {[%clk 0:00:10]} 54. Qb3+ {[%clk 0:00:04]}  Qb6 {[%clk 0:00:10]} 55. Qf7+ {[%clk 0:00:04]}  Ka6 {[%clk 0:00:10]} 56. Qa2+ {[%clk 0:00:05]}  Qa5 {[%clk 0:00:11]} 57. Qf7 {[%clk 0:00:04]}  Qb5 {[%clk 0:00:11]} 58. Qa2+ {[%clk 0:00:03]}  Kb6 {[%clk 0:00:11]} 59. Qf2+ {[%clk 0:00:04]}  Kb7 {[%clk 0:00:11]} 60. Qf7+ {[%clk 0:00:04]}  Rc7 {[%clk 0:00:11]} 61. Qf3+ {[%clk 0:00:04]}  Ka6 {[%clk 0:00:09]} 62. Qa3+ {[%clk 0:00:05]}  Kb6 {[%clk 0:00:09]} 63. Qe3+ {[%clk 0:00:05]}  Rc5 {[%clk 0:00:10]} 64. Qh6+ {[%clk 0:00:05]}  Ka5 {[%clk 0:00:10]} 65. Qd2+ {[%clk 0:00:05]}  Qb4 {[%clk 0:00:10]} 66. Qa2+ {[%clk 0:00:03]}  Kb5 {[%clk 0:00:10]} 67. Qe2+ {[%clk 0:00:03]}  Qc4 {[%clk 0:00:09]} 68. Qb2+ {[%clk 0:00:03]}  Ka4 {[%clk 0:00:09]} 69. Qa1+ {[%clk 0:00:03]}  Kb3 {[%clk 0:00:10]} 70. Qb1+ {[%clk 0:00:04]}  Ka3 {[%clk 0:00:11]} 71. Qa1+ {[%clk 0:00:03]}  Qa2 {[%clk 0:00:10]} 72. Qc1+ {[%clk 0:00:01]}  Rxc1+ {[%clk 0:00:09]} 73. Kxc1 {[%clk 0:00:02]}  Qe2 {[%clk 0:00:09]} 74. Kb1 {[%clk 0:00:01]}  Qb2# {[%clk 0:00:10]} 0-1